fUST/lending_fUST_20250228
["ID","MTS","AMOUNT","RATE_DAILY","PERIOD"]
[354814148,1740713456939,-38956.67499435,0.00071219,2]
[354814149,1740713456948,-1066.41530393,0.00071219,10]
[354814150,1740713456957,-2650.0,0.00071219,10]
[354814151,1740713456966,-6009.32323279,0.00071219,2]
[354814152,1740713456976,-1000.0,0.00071232,2]
[354814153,1740713456985,-1929.8,0.000713,30]
[354814154,1740713456995,-414.65179183,0.00071471,14]
[354814155,1740713457004,-1500.0,0.00071471,14]
[354814156,1740713457014,-500.0,0.00071471,15]
[354814157,1740713457023,-1500.0,0.00071471,15]
[354814158,1740713457033,-1500.0,0.00071471,15]
[354814159,1740713457042,-500.0,0.00071493,120]
[354814160,1740713457051,-652.21084498,0.00071493,120]
[354814161,1740713457061,-500.0,0.00071493,120]
[354814162,1740713457071,-500.0,0.00071493,120]
[354814163,1740713457081,-150.53,0.00071493,120]
[354814164,1740713457091,-789.45436737,0.00071493,120]
[354814165,1740713457102,-500.0,0.00071493,61]
[354814166,1740713457111,-150.53,0.00071493,120]
[354814167,1740713457120,-500.0,0.00071493,120]
[354814168,1740713457129,-500.0,0.00071493,120]
[354814169,1740713457138,-1084.0,0.00071493,120]
[354814170,1740713457147,-500.0,0.00071493,120]
[354814171,1740713457156,-500.0,0.00071493,120]
[354814172,1740713457166,-500.0,0.00071493,120]
[354814173,1740713457177,-2456.89,0.00071576,120]
[354814174,1740713457187,-500.0,0.00071767,120]
[354814175,1740713457196,-500.0,0.00071767,120]
[354814176,1740713457207,-500.0,0.00071767,120]
[354814177,1740713457216,-150.53,0.00071767,120]
[354814178,1740713457225,-500.0,0.00071767,61]
[354814179,1740713457234,-300.94301895,0.00071767,120]
[354814180,1740713457244,-522.54986264,0.00071767,120]
[354814181,1740713457253,-500.0,0.00071767,120]
[354814182,1740713457263,-1084.0,0.00071767,120]
[354814183,1740713457272,-500.0,0.00071767,120]
[354814184,1740713457281,-500.0,0.00071767,120]
[354814185,1740713457290,-500.0,0.00071767,120]
[354814186,1740713457299,-500.0,0.00072041,120]
[354814187,1740713457308,-500.0,0.00072041,120]
[354814188,1740713457318,-509.07090848,0.00072041,120]
[354814189,1740713457327,-217.87379203,0.00072041,120]
[354814190,1740713457337,-500.9686569,0.00072041,61]
[354814191,1740713457346,-500.0,0.00072041,120]
[354814192,1740713457355,-1084.0,0.00072041,120]
[354814193,1740713457364,-505.27856971,0.00072041,120]
[354814194,1740713457374,-508.1087861,0.00072041,120]
[354814195,1740713457383,-500.0,0.00072041,120]
[354814196,1740713457392,-160.915234,0.0007219,10]
[354814197,1740713457402,-500.0,0.00072272,120]
[354814198,1740713457411,-500.0,0.00072272,120]
[354814199,1740713457421,-2378.54,0.000723,30]
[354814200,1740713457430,-803.35936542,0.00072315,120]
[354814201,1740713457440,-500.0,0.00072315,120]
[354814202,1740713457449,-1084.0,0.00072315,120]
[354814203,1740713457460,-500.0,0.00072315,120]
[354814204,1740713457471,-500.0,0.00072589,120]
[354814205,1740713457481,-1084.0,0.00072589,120]
[354814206,1740713457490,-500.0,0.00072589,120]
[354814207,1740713457500,-500.0,0.00072863,120]
[354814208,1740713457510,-1084.0,0.00072863,120]
[354814209,1740713457519,-500.0,0.00072863,120]
[354814210,1740713457529,-500.0,0.00073137,120]
[354814211,1740713457539,-1084.0,0.00073137,120]
[354814212,1740713457549,-500.0,0.00073137,120]
[354814213,1740713457559,-500.0,0.00073411,120]
[354814214,1740713457568,-1084.0,0.00073411,120]
[354814215,1740713457578,-500.0,0.00073411,120]
[354814216,1740713457588,-1049.36535424,0.00073471,15]
[354814217,1740713457598,-985.82506291,0.00073471,14]
[354814218,1740713457608,-1500.0,0.00073471,15]
[354814219,1740713457619,-1500.0,0.00073471,15]
[354814220,1740713457630,-784.07136419,0.00073685,120]
[354814221,1740713457640,-1084.0,0.00073685,120]
[354814222,1740713457649,-500.0,0.00073685,120]
[354814223,1740713457658,-1084.0,0.00073959,120]
[354814224,1740713457668,-500.0,0.00073959,120]
[354814225,1740713457677,-1000.0,0.00073971,2]
[354814226,1740713457686,-500.0,0.00073972,120]
[354814227,1740713457696,-331.28,0.00074,30]
[354814228,1740713457707,-1084.0,0.00074233,120]
[354814229,1740713457716,-629.88472186,0.00074233,120]
[354814230,1740713457727,-1084.0,0.00074507,120]
[354814231,1740713457736,-1084.0,0.00074781,120]
[354814232,1740713457746,-1000.0,0.000748,120]
[354814233,1740713457756,-1084.0,0.00075055,120]
[354814234,1740713457766,-1084.0,0.00075329,120]
[354814235,1740713457775,-1084.0,0.00075603,120]
[354814236,1740713457785,-183.864,0.00075604,120]
[354814237,1740713457795,-1084.0,0.00075877,120]
[354814238,1740713457804,-253.793,0.00075978,120]
[354814239,1740713457814,-186.0,0.00075978,2]
[354814240,1740713457824,-279.494,0.00075978,120]
[354814241,1740713457900,-1084.0,0.00076151,120]
[354814242,1740713457910,-1096.55841181,0.00076424,120]
[354814243,1740713457921,-1000.0,0.0007671,2]
[354814244,1740713457930,-500.0,0.00076712,120]
[354814245,1740713457940,-200.34073853,0.00076871,15]
[354814246,1740713457949,-2456.89,0.00077055,120]
[354814247,1740713457959,-420.52,0.000773,30]
[354814248,1740713457969,-197.091018,0.000773,120]
[354814249,1740713457978,-151.0,0.000773,120]
[354814250,1740713457989,-197.091018,0.000773,120]
[354814251,1740713457998,-22693.3887981,0.00078655,2]
[354814252,1740713458008,-1000.0,0.00079449,2]
[354814253,1740713458018,-372.05,0.000797,7]
[354814254,1740713458027,-3191.45055203,0.0008,30]
[354814255,1740713458038,-500.0,0.00081066,120]
[354814256,1740713458049,-302.0,0.00082188,2]
[354814257,1740713458058,-510.266812,0.00082191,120]
[354814258,1740713458067,-158.88,0.000822,60]
[354814259,1740713458077,-12038.85243612,0.000822,120]
[354814260,1740713458087,-2456.89,0.00082535,120]
[354814261,1740713458096,-1929.8,0.000827,60]
[354814262,1740713458106,-2378.54,0.000827,60]
[354814263,1740713458115,-12038.85243612,0.000837,120]
[354814264,1740713458124,-2000.0,0.00084445,14]
[354814265,1740713458134,-2000.0,0.00084445,15]
[354814266,1740713458143,-2094.65815613,0.00084445,60]
[354814267,1740713458152,-1781.431052,0.000849,120]
[354814268,1740713458161,-331.28,0.000849,60]
[354814269,1740713458171,-12038.85243612,0.000852,120]
[354814270,1740713458179,-2000.0,0.00086445,60]
[354814271,1740713458189,-1500.0,0.00086445,60]
[354814272,1740713458198,-500.0,0.00087178,120]
[354814273,1740713458207,-100000.0,0.00088,120]
[354814274,1740713458216,-2456.89,0.00088014,120]
[354814275,1740713458225,-2200.0,0.00089534,120]
[354814276,1740713458234,-678.77,0.00089534,30]
[354814277,1740713458244,-298.0,0.0009068,2]
[354814278,1740713458253,-397.0,0.0009068,2]
[354814279,1740713458262,-400.488,0.0009068,120]
[354814280,1740713458272,-151.0,0.00091219,120]
[354814281,1740713458281,-151.0,0.00091219,120]
[354814282,1740713458291,-200000.0,0.00091219,120]
[354814283,1740713458300,-420.52,0.000925,60]
[354814284,1740713458310,-183.863,0.00092802,120]
[354814285,1740713458319,-2378.54,0.000934,60]
[354814286,1740713458328,-2456.89,0.00093493,120]
[354814287,1740713458338,-150.0,0.0009368,2]
[354814288,1740713458347,-331.28,0.000964,60]
[354814289,1740713458356,-568.1156279,0.00096986,60]
[354814290,1740713458366,-826310.41255201,0.000974,120]
[354814291,1740713458375,-153.458558,0.000974,120]
[354814292,1740713458384,-227.061401,0.000974,120]
[354814293,1740713458393,-227.061401,0.000974,120]
[354814294,1740713458402,-279.482017,0.000974,120]
[354814295,1740713458412,-279.482017,0.000974,120]
[354814296,1740713458422,-1601.217553,0.000974,120]
[354814297,1740713458431,-151.0,0.000974,120]
[354814298,1740713458440,-1601.217553,0.000974,120]
[354814299,1740713458450,-151.0,0.000974,120]
[354814300,1740713458462,-197.091018,0.000974,120]
[354814301,1740713458472,-152.372761,0.000974,120]
[354814302,1740713458481,-197.091018,0.000974,120]
[354814303,1740713458491,-249.436924,0.000974,120]
[354814304,1740713458500,-249.436924,0.000974,120]
[354814305,1740713458510,-151.0,0.000974,120]
[354814306,1740713458519,-151.0,0.000974,120]
[354814307,1740713458528,-158.88,0.000979,60]
[354814308,1740713458537,-2456.89,0.00098973,120]
[354814309,1740713458547,-6738.7465701,0.00099,30]
[354814310,1740713528051,302.0,0.00045,120]
[354814311,1740713541260,161.0,0.000499,120]
[354814312,1740713543566,161.0,0.000528,120]
[354814313,1740713637742,500.0,0.00071067,120]
[354814315,1740713735767,33093.69976324,0.00071067,120]
[354814316,1740713756352,15416.0,0.00071067,30]
[354814333,1740714026439,38595.82564717,0.00071018,30]
[354814336,1740714309821,500.0,0.00071035,120]
[354814337,1740714337141,-178.1640546,0.00032877,2]
[354814338,1740714337161,-347.43268879,0.00045554,2]
[354814339,1740714337181,-176.8763529,0.00045654,2]
[354814340,1740714337201,-196.441603,0.00045662,2]
[354814341,1740714337223,-997.43624039,0.000489,120]
[354814342,1740714427095,-396.65459833,0.000489,11]
[354814343,1740714427120,-370.650669,0.000489,120]
[354814344,1740714434093,-797.78291022,0.000489,120]
[354814345,1740714434116,-310.0,0.00048999,5]
[354814346,1740714434137,-2262.0,0.00049,120]
[354814347,1740714434157,-1107.18600723,0.00049,120]
[354814348,1740714440095,-505.41463923,0.00049,120]
[354814349,1740714441134,-692.28057993,0.00049,120]
[354814350,1740714449080,-1352.36405103,0.00049,120]
[354814351,1740714473636,850.58438175,0.00071035,30]
[354814379,1740714547201,-866.75472258,0.00049,120]
[354814380,1740714547223,-682.63178135,0.00051,120]
[354814381,1740714553268,-1579.36821865,0.00051,120]
[354814382,1740714553289,-4524.0,0.00051,120]
[354814383,1740714553310,-2262.0,0.00053,120]
[354814384,1740714553330,-4524.0,0.00053,120]
[354814386,1740714562756,1732.69585572,0.000529,120]
[354814387,1740714613786,3406.14332563,0.00047205,2]
[354814388,1740714613807,3276.48131557,0.00047205,2]
[354814389,1740714615255,532.0,0.00049,120]
[354814390,1740714617695,532.0,0.00051,120]
[354814391,1740714619826,532.0,0.00053,120]
[354814392,1740714621110,-500.0,0.00054794,120]
[354814393,1740714621137,-188.36832119,0.00054936,2]
[354814394,1740714621162,-500.0,0.00054999,30]
[354814395,1740714621191,-2262.0,0.00055,120]
[354814396,1740714621217,-4524.0,0.00055,120]
[354814397,1740714621242,-300.0,0.00055,30]
[354814398,1740714621267,-2701.52,0.00055026,10]
[354814399,1740714621291,-2251.26,0.00055026,10]
[354814400,1740714621315,-1876.05,0.00055026,10]
[354814401,1740714621340,-257.6243939,0.00055035,120]
[354814402,1740714621366,-500.0,0.00055035,2]
[354814403,1740714621392,-500.0,0.00055035,120]
[354814404,1740714621419,-382.78142913,0.00055035,120]
[354814405,1740714621448,-156.8628925,0.00055035,2]
[354814406,1740714621474,-500.0,0.00055035,120]
[354814407,1740714621500,-500.0,0.00055035,120]
[354814408,1740714621527,-500.0,0.00055035,120]
[354814409,1740714621553,-419.25078168,0.00055035,120]
[354814410,1740714621579,-500.0,0.00055035,120]
[354814411,1740714621604,-3697.16,0.00055035,120]
[354814412,1740714621628,-2192.05,0.00055035,120]
[354814413,1740714621653,-1000.0,0.00055035,2]
[354814414,1740714621678,-850.23,0.00055035,120]
[354814415,1740714621702,-778.26,0.00055035,120]
[354814416,1740714621726,-999.81,0.00055035,120]
[354814417,1740714621750,-500.0,0.00055035,120]
[354814418,1740714621774,-500.0,0.00055035,120]
[354814419,1740714621799,-1194.28,0.00055035,120]
[354814420,1740714621822,-500.0,0.00055035,21]
[354814421,1740714621847,-3314.2,0.00055035,120]
[354814422,1740714621876,-568.51,0.00055035,120]
[354814423,1740714621901,-500.0,0.00055036,2]
[354814424,1740714621926,-500.0,0.00055036,120]
[354814425,1740714621953,-500.0,0.00055036,120]
[354814426,1740714621978,-500.0,0.00055036,120]
[354814427,1740714622003,-500.0,0.00055036,120]
[354814428,1740714622031,-500.0,0.00055036,120]
[354814429,1740714622057,-500.0,0.00055036,120]
[354814430,1740714622082,-541.95826969,0.00055036,120]
[354814431,1740714622107,-814.72,0.00055036,120]
[354814432,1740714622131,-456.82780743,0.00055036,120]
[354814433,1740714622155,-500.0,0.00055036,120]
[354814434,1740714622181,-500.0,0.00055036,120]
[354814435,1740714622206,-937.14,0.00055036,120]
[354814436,1740714622231,-500.0,0.00055036,120]
[354814437,1740714622256,-600.0,0.00055036,120]
[354814438,1740714622281,-500.0,0.00055036,120]
[354814439,1740714622305,-500.0,0.00055036,120]
[354814440,1740714622330,-501.77,0.00055036,120]
[354814441,1740714622357,-500.0,0.00055036,120]
[354814442,1740714622384,-958.6,0.00055036,120]
[354814443,1740714622415,-500.0,0.00055036,120]
[354814444,1740714622446,-667.96,0.00055036,120]
[354814445,1740714622472,-500.0,0.00055036,120]
[354814446,1740714622498,-500.0,0.00055036,120]
[354814447,1740714622524,-500.0,0.00055036,120]
[354814448,1740714622551,-500.0,0.00055036,120]
[354814449,1740714622678,-719.94,0.00055036,120]
[354814450,1740714622711,-500.0,0.00055036,120]
[354814451,1740714622737,-500.0,0.00055036,120]
[354814452,1740714622762,-713.99,0.00055036,120]
[354814453,1740714622787,-814.71,0.00055036,120]
[354814454,1740714622812,-500.0,0.00055036,120]
[354814455,1740714622839,-952.78,0.00055036,120]
[354814456,1740714622865,-710.07,0.00055036,120]
[354814457,1740714622891,-500.0,0.00055036,120]
[354814458,1740714622917,-500.0,0.00055036,120]
[354814459,1740714622946,-500.0,0.00055036,120]
[354814460,1740714622970,-500.0,0.00055036,120]
[354814461,1740714622995,-1347.28,0.00055036,120]
[354814462,1740714623021,-500.0,0.00055036,120]
[354814463,1740714623051,-500.0,0.00055036,120]
[354814464,1740714623076,-500.0,0.00055036,120]
[354814465,1740714623103,-505.23536334,0.00055036,30]
[354814466,1740714623134,-615.26,0.00055036,120]
[354814467,1740714623174,-504.77744416,0.00055036,120]
[354814468,1740714623203,-500.0,0.00055036,120]
[354814469,1740714623229,-500.0,0.00055036,120]
[354814470,1740714623256,-598.64,0.00055036,120]
[354814471,1740714623281,-500.0,0.00055036,120]
[354814472,1740714623306,-559.23,0.00055036,120]
[354814473,1740714623330,-500.0,0.00055036,120]
[354814474,1740714623355,-500.0,0.00055036,120]
[354814475,1740714623381,-500.0,0.00055036,120]
[354814476,1740714623405,-500.0,0.00055036,120]
[354814477,1740714623430,-500.0,0.00055036,120]
[354814478,1740714623454,-502.72093926,0.00055036,120]
[354814479,1740714623479,-557.08,0.00055036,120]
[354814480,1740714623503,-500.0,0.00055036,120]
[354814481,1740714623526,-500.0,0.00055036,120]
[354814482,1740714623551,-794.93,0.00055036,120]
[354814483,1740714623575,-500.0,0.00055036,120]
[354814484,1740714623599,-500.0,0.00055036,120]
[354814485,1740714623625,-1777.01,0.00055036,120]
[354814486,1740714623651,-647.79,0.00055036,120]
[354814487,1740714623675,-500.0,0.00055036,120]
[354814488,1740714623702,-500.0,0.00055036,120]
[354814489,1740714623727,-500.0,0.00055036,120]
[354814490,1740714623752,-500.0,0.00055036,120]
[354814491,1740714623777,-419.04437513,0.00055036,120]
[354814492,1740714623802,-991.53,0.00055036,120]
[354814493,1740714623826,-1280.1,0.00055036,120]
[354814494,1740714623851,-500.0,0.00055036,120]
[354814495,1740714623878,-500.0,0.00055036,120]
[354814496,1740714623902,-500.0,0.00055036,120]
[354814497,1740714623928,-1157.93,0.00055036,120]
[354814498,1740714623953,-500.0,0.00055036,120]
[354814499,1740714623977,-178.0316585,0.00055036,120]
[354814500,1740714624002,-500.0,0.00055036,120]
[354814501,1740714624027,-500.0,0.00055036,120]
[354814502,1740714624052,-500.0,0.00055036,120]
[354814503,1740714624077,-500.0,0.00055036,120]
[354814504,1740714624104,-500.0,0.00055036,120]
[354814505,1740714624129,-500.0,0.00055036,120]
[354814506,1740714624154,-604.44,0.00055036,120]
[354814507,1740714624181,-501.90937818,0.00055036,120]
[354814508,1740714624209,-500.0,0.00055036,120]
[354814509,1740714624235,-500.0,0.00055036,120]
[354814510,1740714624261,-500.0,0.00055036,120]
[354814511,1740714624286,-820.88,0.00055036,120]
[354814512,1740714624312,-5534.98,0.00055036,120]
[354814513,1740714624337,-500.0,0.00055036,120]
[354814514,1740714624362,-500.0,0.00055036,120]
[354814515,1740714624388,-500.0,0.00055036,120]
[354814516,1740714624415,-702.83,0.00055036,120]
[354814517,1740714624442,-500.0,0.00055036,120]
[354814518,1740714624470,-500.0,0.00055036,120]
[354814519,1740714624599,-500.0,0.00055036,120]
[354814520,1740714624627,-658.92,0.00055036,120]
[354814521,1740714624656,-503.85129561,0.00055036,120]
[354814522,1740714624687,-500.0,0.00055036,120]
[354814523,1740714624713,-500.0,0.00055036,120]
[354814524,1740714624743,-13649.77,0.00055036,7]
[354814525,1740714624772,-500.0,0.00055036,120]
[354814526,1740714624802,-500.0,0.00055036,120]
[354814527,1740714624830,-500.0,0.00055036,120]
[354814528,1740714624862,-500.89865935,0.00055036,120]
[354814529,1740714624890,-500.0,0.00055036,120]
[354814530,1740714624919,-2298.66,0.00055036,120]
[354814531,1740714624948,-760.27,0.00055036,120]
[354814532,1740714624973,-500.0,0.00055036,120]
[354814533,1740714624999,-506.11809782,0.00055036,120]
[354814534,1740714625027,-500.0,0.00055036,120]
[354814535,1740714625053,-500.0,0.00055036,120]
[354814536,1740714625079,-500.0,0.00055036,120]
[354814537,1740714625105,-500.0,0.00055036,120]
[354814538,1740714625131,-500.0,0.00055036,120]
[354814539,1740714625157,-500.0,0.00055036,120]
[354814540,1740714625184,-907.46,0.00055036,120]
[354814541,1740714625210,-500.0,0.00055036,120]
[354814542,1740714625235,-597.64,0.00055036,120]
[354814543,1740714625259,-200.0,0.00055036,7]
[354814544,1740714625284,-2903.54,0.00055036,120]
[354814545,1740714625308,-500.0,0.00055036,120]
[354814546,1740714625332,-507.71483851,0.00055036,120]
[354814547,1740714625358,-9266.4,0.00055036,120]
[354814548,1740714625383,-412.75498307,0.00055036,120]
[354814549,1740714625407,-500.0,0.00055036,120]
[354814550,1740714625433,-500.0,0.00055036,120]
[354814551,1740714625457,-500.0,0.00055036,120]
[354814552,1740714625481,-500.0,0.00055036,120]
[354814553,1740714625506,-500.0,0.00055036,120]
[354814554,1740714625530,-500.0,0.00055036,120]
[354814555,1740714625555,-4824.43,0.00055036,120]
[354814556,1740714625579,-500.0,0.00055036,120]
[354814557,1740714625604,-1335.37,0.00055036,120]
[354814558,1740714625632,-718.0,0.00055036,120]
[354814559,1740714625657,-500.0,0.00055036,120]
[354814560,1740714625683,-504.35978953,0.00055036,120]
[354814561,1740714625710,-1082.86,0.00055036,120]
[354814562,1740714625735,-500.0,0.00055036,120]
[354814563,1740714625760,-500.0,0.00055036,120]
[354814564,1740714625786,-500.0,0.00055036,120]
[354814565,1740714625811,-500.0,0.00055036,120]
[354814566,1740714625837,-991.55,0.00055036,120]
[354814567,1740714625865,-500.0,0.00055036,120]
[354814568,1740714625891,-500.0,0.00055036,120]
[354814569,1740714625916,-500.0,0.00055036,30]
[354814570,1740714625946,-183.61723593,0.00055036,120]
[354814571,1740714625971,-500.0,0.00055036,120]
[354814572,1740714625996,-500.0,0.00055036,120]
[354814573,1740714626021,-500.0,0.00055036,120]
[354814574,1740714626045,-500.0,0.00055036,45]
[354814575,1740714626070,-500.0,0.00055036,120]
[354814576,1740714626095,-500.0,0.00055036,120]
[354814577,1740714626121,-500.0,0.00055036,120]
[354814578,1740714626147,-559.31,0.00055036,120]
[354814579,1740714626172,-445.68690983,0.00055036,120]
[354814580,1740714626203,-5756.36,0.00055036,120]
[354814581,1740714626231,-500.0,0.00055036,120]
[354814582,1740714626258,-500.0,0.00055036,120]
[354814583,1740714626285,-500.0,0.00055036,120]
[354814584,1740714626310,-500.0,0.00055036,120]
[354814585,1740714626335,-500.0,0.00055036,120]
[354814586,1740714626360,-500.0,0.00055036,120]
[354814587,1740714626477,-500.0,0.00055036,120]
[354814588,1740714626504,-2151.17,0.00055036,120]
[354814589,1740714626529,-500.0,0.00055036,120]
[354814590,1740714626554,-500.0,0.00055036,120]
[354814591,1740714626579,-500.0,0.00055036,120]
[354814592,1740714626603,-500.0,0.00055036,120]
[354814593,1740714626628,-706.58,0.00055036,120]
[354814594,1740714626652,-160.0,0.00055036,7]
[354814595,1740714626678,-500.0,0.00055036,120]
[354814596,1740714626704,-500.0,0.00055036,120]
[354814597,1740714626728,-500.0,0.00055036,120]
[354814598,1740714626753,-500.0,0.00055036,120]
[354814599,1740714626778,-500.0,0.00055036,120]
[354814600,1740714626803,-500.0,0.00055036,120]
[354814601,1740714626829,-3902.13,0.00055036,120]
[354814602,1740714626858,-500.0,0.00055036,120]
[354814603,1740714626901,-427.90357354,0.00055036,120]
[354814604,1740714626940,-500.0,0.00055036,120]
[354814605,1740714626971,-500.0,0.00055036,120]
[354814606,1740714626999,-460.11332314,0.00055036,45]
[354814607,1740714627030,-875.93,0.00055036,120]
[354814608,1740714627058,-583.35,0.00055036,120]
[354814609,1740714627089,-500.0,0.00055036,120]
[354814610,1740714627118,-504.34115355,0.00055036,120]
[354814611,1740714627149,-500.0,0.00055036,120]
[354814612,1740714627181,-500.0,0.00055036,120]
[354814613,1740714627209,-500.0,0.00055036,120]
[354814614,1740714627238,-500.0,0.00055036,120]
[354814615,1740714627270,-1000.0,0.00055036,60]
[354814616,1740714627297,-2508.91,0.00055036,120]
[354814617,1740714627327,-504.0629291,0.00055036,120]
[354814618,1740714627355,-602.01,0.00055036,120]
[354814619,1740714627384,-9170.72,0.00055036,120]
[354814620,1740714627411,-500.0,0.00055036,120]
[354814621,1740714627438,-77991.08,0.00055036,7]
[354814622,1740714627463,-500.0,0.00055036,120]
[354814623,1740714627488,-500.0,0.00055036,120]
[354814624,1740714627514,-500.0,0.00055036,120]
[354814625,1740714627539,-625.01,0.00055036,120]
[354814626,1740714627565,-500.0,0.00055036,120]
[354814627,1740714627591,-527.99,0.00055036,120]
[354814628,1740714627617,-677.29,0.00055036,120]
[354814629,1740714627644,-500.0,0.00055036,120]
[354814630,1740714627670,-1965.73,0.00055036,120]
[354814631,1740714627699,-1394.69,0.00055036,120]
[354814632,1740714627725,-500.0,0.00055036,120]
[354814633,1740714627752,-500.0,0.00055036,120]
[354814634,1740714627777,-500.0,0.00055036,120]
[354814635,1740714627802,-500.0,0.00055036,120]
[354814636,1740714627826,-500.0,0.00055036,120]
[354814637,1740714627854,-500.0,0.00055036,120]
[354814638,1740714627882,-500.0,0.00055036,120]
[354814639,1740714627908,-647.17,0.00055036,120]
[354814640,1740714627939,-2544.36,0.00055036,120]
[354814641,1740714627966,-622.43,0.00055036,120]
[354814642,1740714627992,-500.0,0.00055036,120]
[354814643,1740714628017,-500.0,0.00055036,120]
[354814644,1740714628042,-500.0,0.00055036,120]
[354814645,1740714628067,-500.0,0.00055036,120]
[354814646,1740714628092,-500.0,0.00055036,120]
[354814647,1740714628116,-500.0,0.00055036,120]
[354814648,1740714628141,-500.0,0.00055036,120]
[354814649,1740714628166,-357.09227683,0.00055036,120]
[354814650,1740714628196,-500.0,0.00055036,120]
[354814651,1740714628221,-500.0,0.00055036,120]
[354814652,1740714628350,-1215.84,0.00055036,120]
[354814653,1740714628376,-500.0,0.00055036,120]
[354814654,1740714628403,-500.0,0.00055036,120]
[354814655,1740714628427,-500.0,0.00055036,120]
[354814656,1740714628456,-500.0,0.00055036,120]
[354814657,1740714628481,-503.72294972,0.00055036,120]
[354814658,1740714628506,-982.74,0.00055036,120]
[354814659,1740714628531,-500.0,0.00055036,120]
[354814660,1740714628556,-500.0,0.00055036,120]
[354814661,1740714628580,-500.0,0.00055036,120]
[354814662,1740714628606,-500.0,0.00055036,120]
[354814663,1740714628632,-500.0,0.00055036,120]
[354814664,1740714628658,-572.33,0.00055036,120]
[354814665,1740714628686,-500.0,0.00055036,120]
[354814666,1740714628711,-500.0,0.00055036,120]
[354814667,1740714628735,-500.78573675,0.00055036,120]
[354814668,1740714628759,-222000.0,0.00055037,2]
[354814669,1740714628785,-188.36832118,0.00055037,2]
[354814670,1740714628809,-1271.26,0.000551,30]
[354814671,1740714628834,-239.81,0.000551,30]
[354814672,1740714628862,-222.22,0.000551,30]
[354814673,1740714628888,-1181.57,0.000551,30]
[354814674,1740714628915,-54359.86,0.000551,30]
[354814675,1740714628950,-500.0,0.00055135,120]
[354814676,1740714628975,-500.0,0.00055135,120]
[354814677,1740714629000,-289.04865849,0.00055135,120]
[354814678,1740714629027,-249.41137097,0.00055135,120]
[354814679,1740714629051,-500.0,0.00055135,31]
[354814680,1740714629075,-500.0,0.00055135,120]
[354814681,1740714629100,-475.16256042,0.00055135,31]
[354814682,1740714629124,-500.0,0.00055135,120]
[354814683,1740714629147,-500.0,0.00055135,120]
[354814684,1740714629172,-500.0,0.00055135,120]
[354814685,1740714629198,-632.07070775,0.00055135,120]
[354814686,1740714629222,-510.17256034,0.00055137,120]
[354814687,1740714629247,-500.0,0.00055137,120]
[354814688,1740714629272,-500.0,0.00055137,120]
[354814689,1740714629297,-500.0,0.00055137,120]
[354814690,1740714629322,-500.0,0.00055137,120]
[354814691,1740714629346,-240.24018355,0.00055137,120]
[354814692,1740714629371,-500.0,0.00055137,120]
[354814693,1740714629395,-500.0,0.00055137,120]
[354814694,1740714629419,-500.0,0.00055137,120]